[Event "Titled Tuesday Blitz July 18 Late 2023"]
[White "Mamedov, Rauf"]
[Black "Rodchenkov, Sergey D."]
[WhiteFideId "13401653"]
[BlackFideId "4168712"]
[WhiteElo "3048"]
[BlackElo "2588"]
[Result "1-0"]
[Round "2"]
[TimeControl "180+2"]
[Date "2023.07.18"]
[WhiteClock "0:02:26"]
[BlackClock "0:02:11"]
[Board "4"]

1. e4 {[%clk 0:02:59]}  c5 {[%clk 0:02:59]} 2. Nf3 {[%clk 0:02:59]}  d6 {[%clk 0:02:59]} 3. Nc3 {[%clk 0:02:59]}  Nf6 {[%clk 0:02:57]} 4. e5 {[%clk 0:02:59]}  dxe5 {[%clk 0:02:57]} 5. Nxe5 {[%clk 0:02:59]}  a6 {[%clk 0:02:57]} 6. g3 {[%clk 0:02:59]}  Qd6 {[%clk 0:02:56]} 7. Nf3 {[%clk 0:02:58]}  Nc6 {[%clk 0:02:54]} 8. Bg2 {[%clk 0:02:58]}  Qe6+ {[%clk 0:02:53]} 9. Kf1 {[%clk 0:02:57]}  g6 {[%clk 0:02:48]} 10. d3 {[%clk 0:02:56]}  Bg7 {[%clk 0:02:48]} 11. h3 {[%clk 0:02:56]}  O-O {[%clk 0:02:48]} 12. Kg1 {[%clk 0:02:56]}  b6 {[%clk 0:02:47]} 13. Kh2 {[%clk 0:02:55]}  Bb7 {[%clk 0:02:48]} 14. Re1 {[%clk 0:02:54]}  Qd7 {[%clk 0:02:43]} 15. Na4 {[%clk 0:02:53]}  Qd8 {[%clk 0:02:43]} 16. Nc3 {[%clk 0:02:43]}  Rc8 {[%clk 0:02:39]} 17. Kg1 {[%clk 0:02:41]}  Qd7 {[%clk 0:02:27]} 18. Na4 {[%clk 0:02:40]}  Qd8 {[%clk 0:02:27]} 19. Nc3 {[%clk 0:02:39]}  Qd7 {[%clk 0:02:27]} 20. Bf4 {[%clk 0:02:39]}  Nd4 {[%clk 0:02:26]} 21. Ne5 {[%clk 0:02:30]}  Qc7 {[%clk 0:02:11]} 22. Nxg6 {[%clk 0:02:26]} 1-0


[Site "https://www.chess.com"]

[Event "Titled Tuesday Blitz July 18 Late 2023"]
[White "Bortnyk, Olexandr"]
[Black "Fonseca Manrique, Enrique"]
[WhiteFideId "14120828"]
[BlackFideId "5114330"]
[WhiteElo "3022"]
[BlackElo "2585"]
[Result "1-0"]
[Round "2"]
[TimeControl "180+2"]
[Date "2023.07.18"]
[WhiteClock "0:02:22"]
[BlackClock "0:00:51"]
[Board "7"]

1. e4 {[%clk 0:03:00]}  c5 {[%clk 0:03:00]} 2. c3 {[%clk 0:03:00]}  d5 {[%clk 0:03:00]} 3. exd5 {[%clk 0:03:01]}  Qxd5 {[%clk 0:03:00]} 4. d4 {[%clk 0:03:01]}  Nf6 {[%clk 0:03:01]} 5. Be3 {[%clk 0:02:59]}  cxd4 {[%clk 0:02:47]} 6. cxd4 {[%clk 0:03:00]}  e6 {[%clk 0:02:46]} 7. Nc3 {[%clk 0:03:00]}  Bb4 {[%clk 0:02:32]} 8. Nf3 {[%clk 0:03:00]}  O-O {[%clk 0:02:30]} 9. Bd3 {[%clk 0:02:59]}  Nc6 {[%clk 0:02:29]} 10. O-O {[%clk 0:02:59]}  Qd6 {[%clk 0:02:10]} 11. Ne4 {[%clk 0:02:56]}  Nxe4 {[%clk 0:02:04]} 12. Bxe4 {[%clk 0:02:57]}  g6 {[%clk 0:01:45]} 13. Rc1 {[%clk 0:02:53]}  Bd7 {[%clk 0:01:43]} 14. Qb3 {[%clk 0:02:41]}  Ba5 {[%clk 0:01:31]} 15. Qb5 {[%clk 0:02:32]}  Bc7 {[%clk 0:01:14]} 16. Qxb7 {[%clk 0:02:28]}  Rab8 {[%clk 0:00:58]} 17. Rxc6 {[%clk 0:02:27]}  Rxb7 {[%clk 0:00:58]} 18. Rxd6 {[%clk 0:02:28]}  Bxd6 {[%clk 0:00:59]} 19. Bxb7 {[%clk 0:02:28]}  Rb8 {[%clk 0:00:59]} 20. Ba6 {[%clk 0:02:24]}  Rxb2 {[%clk 0:00:58]} 21. Bc4 {[%clk 0:02:25]}  Bb5 {[%clk 0:00:54]} 22. Bxb5 {[%clk 0:02:24]}  Rxb5 {[%clk 0:00:55]} 23. Rc1 {[%clk 0:02:22]}  Kg7 {[%clk 0:00:51]} 24. g3 {[%clk 0:02:22]} 1-0


[Site "https://www.chess.com"]

[Event "Titled Tuesday Blitz July 18 Late 2023"]
[White "Duda, Jan-Krzysztof"]
[Black "brm72"]
[WhiteFideId "1170546"]
[WhiteElo "3013"]
[BlackElo "2580"]
[Result "1/2-1/2"]
[Round "2"]
[TimeControl "180+2"]
[Date "2023.07.18"]
[WhiteClock "0:00:06"]
[BlackClock "0:00:12"]
[Board "9"]

1. e4 {[%clk 0:03:00]}  c6 {[%clk 0:03:00]} 2. Nc3 {[%clk 0:02:59]}  d5 {[%clk 0:03:00]} 3. f4 {[%clk 0:02:57]}  dxe4 {[%clk 0:02:59]} 4. Nxe4 {[%clk 0:02:58]}  Nf6 {[%clk 0:02:59]} 5. Nf2 {[%clk 0:02:58]}  c5 {[%clk 0:02:53]} 6. Nf3 {[%clk 0:02:57]}  Nc6 {[%clk 0:02:53]} 7. Bb5 {[%clk 0:02:55]}  Bd7 {[%clk 0:02:53]} 8. O-O {[%clk 0:02:53]}  a6 {[%clk 0:02:49]} 9. Bxc6 {[%clk 0:02:53]}  Bxc6 {[%clk 0:02:50]} 10. Ne5 {[%clk 0:02:53]}  Qc7 {[%clk 0:02:47]} 11. b3 {[%clk 0:02:49]}  e6 {[%clk 0:02:46]} 12. Bb2 {[%clk 0:02:49]}  Bd6 {[%clk 0:02:46]} 13. Qe2 {[%clk 0:02:46]}  O-O-O {[%clk 0:02:34]} 14. c4 {[%clk 0:02:32]}  Kb8 {[%clk 0:02:24]} 15. a3 {[%clk 0:02:27]}  Nd7 {[%clk 0:02:16]} 16. Nxf7 {[%clk 0:02:13]}  Bxf4 {[%clk 0:02:13]} 17. Ng4 {[%clk 0:02:13]}  h5 {[%clk 0:02:06]} 18. Nxh8 {[%clk 0:01:42]}  hxg4 {[%clk 0:02:01]} 19. Ng6 {[%clk 0:01:38]}  Bxh2+ {[%clk 0:01:59]} 20. Kh1 {[%clk 0:01:38]}  Ka8 {[%clk 0:01:48]} 21. Qxg4 {[%clk 0:01:29]}  Nf6 {[%clk 0:01:43]} 22. Bxf6 {[%clk 0:01:18]}  gxf6 {[%clk 0:01:26]} 23. Rxf6 {[%clk 0:01:03]}  Rxd2 {[%clk 0:01:18]} 24. Nh4 {[%clk 0:01:03]}  Bg3 {[%clk 0:01:06]} 25. Qg5 {[%clk 0:00:48]}  Bxh4 {[%clk 0:00:50]} 26. Rf8+ {[%clk 0:00:41]}  Rd8 {[%clk 0:00:46]} 27. Rxd8+ {[%clk 0:00:39]}  Qxd8 {[%clk 0:00:47]} 28. Qxd8+ {[%clk 0:00:37]}  Bxd8 {[%clk 0:00:48]} 29. Re1 {[%clk 0:00:37]}  Bf6 {[%clk 0:00:34]} 30. Rxe6 {[%clk 0:00:36]}  Bb2 {[%clk 0:00:34]} 31. a4 {[%clk 0:00:35]}  Kb8 {[%clk 0:00:32]} 32. Kh2 {[%clk 0:00:35]}  Kc7 {[%clk 0:00:32]} 33. g4 {[%clk 0:00:34]}  Kd7 {[%clk 0:00:32]} 34. Re2 {[%clk 0:00:32]}  Bf6 {[%clk 0:00:29]} 35. Kg3 {[%clk 0:00:31]}  b5 {[%clk 0:00:20]} 36. axb5 {[%clk 0:00:28]}  axb5 {[%clk 0:00:21]} 37. Kf4 {[%clk 0:00:27]}  bxc4 {[%clk 0:00:21]} 38. bxc4 {[%clk 0:00:28]}  Ba4 {[%clk 0:00:16]} 39. g5 {[%clk 0:00:19]}  Bd4 {[%clk 0:00:16]} 40. Ke4 {[%clk 0:00:16]}  Bd1 {[%clk 0:00:13]} 41. Rh2 {[%clk 0:00:12]}  Ke6 {[%clk 0:00:12]} 42. Rh6+ {[%clk 0:00:12]}  Kf7 {[%clk 0:00:12]} 43. Kd5 {[%clk 0:00:07]}  Bf3+ {[%clk 0:00:12]} 44. Kd6 {[%clk 0:00:07]}  Be2 {[%clk 0:00:11]} 45. Kd5 {[%clk 0:00:05]}  Kg7 {[%clk 0:00:11]} 46. Re6 {[%clk 0:00:03]}  Bh5 {[%clk 0:00:11]} 47. Re7+ {[%clk 0:00:02]}  Kg6 {[%clk 0:00:11]} 48. Rc7 {[%clk 0:00:02]}  Bf3+ {[%clk 0:00:11]} 49. Kd6 {[%clk 0:00:02]}  Kxg5 {[%clk 0:00:10]} 50. Rxc5+ {[%clk 0:00:03]}  Bxc5+ {[%clk 0:00:11]} 51. Kxc5 {[%clk 0:00:04]}  Kf4 {[%clk 0:00:11]} 52. Kd6 {[%clk 0:00:04]}  Kf5 {[%clk 0:00:11]} 53. c5 {[%clk 0:00:05]}  Kf6 {[%clk 0:00:11]} 54. c6 {[%clk 0:00:06]}  Bxc6 {[%clk 0:00:12]} 1/2-1/2


[Site "https://www.chess.com"]

[Event "Titled Tuesday Blitz July 18 Late 2023"]
[White "Svane, Rasmus"]
[Black "Medarde Santiago, Luis Marcos"]
[WhiteFideId "4657101"]
[BlackFideId "2263076"]
[WhiteElo "2969"]
[BlackElo "2563"]
[Result "0-1"]
[Round "2"]
[TimeControl "180+2"]
[Date "2023.07.18"]
[WhiteClock "0:00:06"]
[BlackClock "0:00:30"]
[Board "18"]

1. Nf3 {[%clk 0:03:00]}  Nf6 {[%clk 0:02:59]} 2. g3 {[%clk 0:02:56]}  d5 {[%clk 0:02:57]} 3. Bg2 {[%clk 0:02:57]}  e6 {[%clk 0:02:58]} 4. O-O {[%clk 0:02:57]}  Be7 {[%clk 0:02:59]} 5. c4 {[%clk 0:02:57]}  O-O {[%clk 0:02:59]} 6. b3 {[%clk 0:02:58]}  b6 {[%clk 0:02:59]} 7. d4 {[%clk 0:02:57]}  Bb7 {[%clk 0:02:59]} 8. Nc3 {[%clk 0:02:57]}  Nbd7 {[%clk 0:02:58]} 9. Bb2 {[%clk 0:02:57]}  c5 {[%clk 0:02:57]} 10. Ne1 {[%clk 0:02:57]}  Rc8 {[%clk 0:02:33]} 11. cxd5 {[%clk 0:02:55]}  Nxd5 {[%clk 0:02:30]} 12. Nxd5 {[%clk 0:02:54]}  Bxd5 {[%clk 0:02:31]} 13. Bxd5 {[%clk 0:02:54]}  exd5 {[%clk 0:02:32]} 14. Ng2 {[%clk 0:02:54]}  c4 {[%clk 0:02:24]} 15. bxc4 {[%clk 0:02:36]}  dxc4 {[%clk 0:02:25]} 16. Rc1 {[%clk 0:02:34]}  b5 {[%clk 0:02:25]} 17. d5 {[%clk 0:02:07]}  b4 {[%clk 0:02:25]} 18. Bd4 {[%clk 0:02:08]}  c3 {[%clk 0:02:20]} 19. e4 {[%clk 0:02:07]}  Bf6 {[%clk 0:02:18]} 20. f4 {[%clk 0:01:52]}  Bxd4+ {[%clk 0:02:14]} 21. Qxd4 {[%clk 0:01:53]}  Qb6 {[%clk 0:02:14]} 22. Rfd1 {[%clk 0:01:52]}  Rfd8 {[%clk 0:01:58]} 23. Ne3 {[%clk 0:01:50]}  a5 {[%clk 0:01:55]} 24. Nf5 {[%clk 0:01:24]}  Rc4 {[%clk 0:01:41]} 25. Qxb6 {[%clk 0:01:16]}  Nxb6 {[%clk 0:01:42]} 26. Ne7+ {[%clk 0:01:09]}  Kf8 {[%clk 0:01:41]} 27. Nc6 {[%clk 0:01:10]}  Ra8 {[%clk 0:01:35]} 28. Rd4 {[%clk 0:00:55]}  Rxd4 {[%clk 0:01:30]} 29. Nxd4 {[%clk 0:00:56]}  Re8 {[%clk 0:01:30]} 30. Nc6 {[%clk 0:00:26]}  Rxe4 {[%clk 0:01:30]} 31. Nxa5 {[%clk 0:00:27]}  Nxd5 {[%clk 0:01:30]} 32. Kf2 {[%clk 0:00:27]}  Rd4 {[%clk 0:01:27]} 33. Nb3 {[%clk 0:00:26]}  Rd3 {[%clk 0:01:27]} 34. Ke2 {[%clk 0:00:23]}  Re3+ {[%clk 0:01:26]} 35. Kf2 {[%clk 0:00:23]}  Rd3 {[%clk 0:01:26]} 36. Ke2 {[%clk 0:00:24]}  Re3+ {[%clk 0:01:27]} 37. Kf2 {[%clk 0:00:24]}  Re8 {[%clk 0:01:22]} 38. Rd1 {[%clk 0:00:25]}  Nf6 {[%clk 0:01:19]} 39. Rd4 {[%clk 0:00:24]}  Ra8 {[%clk 0:01:19]} 40. Nc1 {[%clk 0:00:22]}  Ra4 {[%clk 0:01:12]} 41. Ke2 {[%clk 0:00:22]}  b3 {[%clk 0:01:01]} 42. Nxb3 {[%clk 0:00:07]}  Rxa2+ {[%clk 0:01:02]} 43. Kf3 {[%clk 0:00:08]}  c2 {[%clk 0:00:56]} 44. Rc4 {[%clk 0:00:07]}  Ra3 {[%clk 0:00:56]} 45. Rxc2 {[%clk 0:00:05]}  Rxb3+ {[%clk 0:00:56]} 46. Kg2 {[%clk 0:00:05]}  h5 {[%clk 0:00:56]} 47. h3 {[%clk 0:00:05]}  g6 {[%clk 0:00:56]} 48. Re2 {[%clk 0:00:05]}  Kg7 {[%clk 0:00:56]} 49. Kh2 {[%clk 0:00:06]}  Nd5 {[%clk 0:00:52]} 50. Rf2 {[%clk 0:00:03]}  Re3 {[%clk 0:00:51]} 51. Kg2 {[%clk 0:00:03]}  Nc3 {[%clk 0:00:51]} 52. Rf1 {[%clk 0:00:01]}  Ne4 {[%clk 0:00:52]} 53. g4 {[%clk 0:00:01]}  hxg4 {[%clk 0:00:52]} 54. hxg4 {[%clk 0:00:02]}  Rg3+ {[%clk 0:00:52]} 55. Kh2 {[%clk 0:00:02]}  Rxg4 {[%clk 0:00:53]} 56. f5 {[%clk 0:00:03]}  gxf5 {[%clk 0:00:50]} 57. Rxf5 {[%clk 0:00:04]}  Nf6 {[%clk 0:00:51]} 58. Rf1 {[%clk 0:00:04]}  Rg6 {[%clk 0:00:51]} 59. Kh3 {[%clk 0:00:05]}  Nh7 {[%clk 0:00:51]} 60. Rf2 {[%clk 0:00:05]}  f6 {[%clk 0:00:51]} 61. Kh4 {[%clk 0:00:05]}  Rg5 {[%clk 0:00:51]} 62. Rf1 {[%clk 0:00:05]}  Kg6 {[%clk 0:00:52]} 63. Rf2 {[%clk 0:00:06]}  Nf8 {[%clk 0:00:52]} 64. Rf1 {[%clk 0:00:06]}  Nd7 {[%clk 0:00:53]} 65. Rf2 {[%clk 0:00:06]}  Ne5 {[%clk 0:00:54]} 66. Rf1 {[%clk 0:00:07]}  Rg4+ {[%clk 0:00:54]} 67. Kh3 {[%clk 0:00:07]}  Kg5 {[%clk 0:00:55]} 68. Rf2 {[%clk 0:00:07]}  f5 {[%clk 0:00:55]} 69. Rf1 {[%clk 0:00:08]}  f4 {[%clk 0:00:55]} 70. Rf2 {[%clk 0:00:08]}  f3 {[%clk 0:00:53]} 71. Ra2 {[%clk 0:00:07]}  Rf4 {[%clk 0:00:48]} 72. Kg3 {[%clk 0:00:07]}  Rf5 {[%clk 0:00:33]} 73. Kf2 {[%clk 0:00:07]}  Ng4+ {[%clk 0:00:32]} 74. Kf1 {[%clk 0:00:06]}  f2 {[%clk 0:00:31]} 75. Ra1 {[%clk 0:00:06]}  Nh2+ {[%clk 0:00:31]} 76. Kg2 {[%clk 0:00:06]}  f1=Q+ {[%clk 0:00:32]} 77. Kg3 {[%clk 0:00:05]}  Qxa1 {[%clk 0:00:29]} 78. Kh3 {[%clk 0:00:05]}  Qc3+ {[%clk 0:00:29]} 79. Kg2 {[%clk 0:00:05]}  Rf2+ {[%clk 0:00:30]} 80. Kh1 {[%clk 0:00:06]}  Qe1# {[%clk 0:00:30]} 0-1


[Site "https://www.chess.com"]

[Event "Titled Tuesday Blitz July 18 Late 2023"]
[White "Przybylski, Wojciech"]
[Black "Hakobyan, Aram"]
[WhiteFideId "1117599"]
[BlackFideId "13306677"]
[WhiteElo "2556"]
[BlackElo "2963"]
[Result "0-1"]
[Round "2"]
[TimeControl "180+2"]
[Date "2023.07.18"]
[WhiteClock "0:00:08"]
[BlackClock "0:00:08"]
[Board "21"]

1. e4 {[%clk 0:03:00]}  c5 {[%clk 0:02:59]} 2. Nf3 {[%clk 0:03:00]}  d6 {[%clk 0:03:00]} 3. Bb5+ {[%clk 0:02:58]}  Bd7 {[%clk 0:02:58]} 4. a4 {[%clk 0:02:57]}  Nf6 {[%clk 0:02:58]} 5. d3 {[%clk 0:02:56]}  a6 {[%clk 0:02:59]} 6. Bc4 {[%clk 0:02:55]}  Nc6 {[%clk 0:02:58]} 7. Nc3 {[%clk 0:02:55]}  e6 {[%clk 0:02:58]} 8. O-O {[%clk 0:02:54]}  Be7 {[%clk 0:02:58]} 9. Re1 {[%clk 0:02:55]}  O-O {[%clk 0:02:55]} 10. h3 {[%clk 0:02:53]}  Qc7 {[%clk 0:02:48]} 11. Bf4 {[%clk 0:02:49]}  Ne5 {[%clk 0:02:48]} 12. Ba2 {[%clk 0:02:47]}  b5 {[%clk 0:02:40]} 13. axb5 {[%clk 0:02:34]}  axb5 {[%clk 0:02:41]} 14. Nxe5 {[%clk 0:02:33]}  dxe5 {[%clk 0:02:40]} 15. Bg3 {[%clk 0:02:32]}  Bc6 {[%clk 0:02:26]} 16. b4 {[%clk 0:02:30]}  Ra3 {[%clk 0:01:56]} 17. Bb3 {[%clk 0:02:25]}  cxb4 {[%clk 0:01:48]} 18. Ne2 {[%clk 0:02:25]}  Rfa8 {[%clk 0:01:43]} 19. Rb1 {[%clk 0:02:24]}  Nd7 {[%clk 0:01:17]} 20. d4 {[%clk 0:02:18]}  Bxe4 {[%clk 0:01:14]} 21. Nc1 {[%clk 0:02:13]}  Bg6 {[%clk 0:00:55]} 22. Bxe5 {[%clk 0:02:02]}  Nxe5 {[%clk 0:00:53]} 23. dxe5 {[%clk 0:02:00]}  Rd8 {[%clk 0:00:52]} 24. Qe2 {[%clk 0:01:59]}  Bc5 {[%clk 0:00:41]} 25. Nd3 {[%clk 0:01:54]}  Bxd3 {[%clk 0:00:35]} 26. cxd3 {[%clk 0:01:54]}  Bd4 {[%clk 0:00:36]} 27. Kh1 {[%clk 0:01:41]}  Bc3 {[%clk 0:00:33]} 28. Red1 {[%clk 0:01:35]}  Qxe5 {[%clk 0:00:33]} 29. Qxe5 {[%clk 0:01:33]}  Bxe5 {[%clk 0:00:34]} 30. g3 {[%clk 0:01:30]}  Bd4 {[%clk 0:00:33]} 31. Kg2 {[%clk 0:01:29]}  g5 {[%clk 0:00:33]} 32. g4 {[%clk 0:01:26]}  Kg7 {[%clk 0:00:33]} 33. Kf3 {[%clk 0:01:27]}  Rc8 {[%clk 0:00:29]} 34. Ke4 {[%clk 0:01:25]}  Bf6 {[%clk 0:00:28]} 35. d4 {[%clk 0:01:17]}  Rc3 {[%clk 0:00:26]} 36. Rd3 {[%clk 0:01:17]}  Bd8 {[%clk 0:00:22]} 37. Rxc3 {[%clk 0:01:02]}  bxc3 {[%clk 0:00:22]} 38. Bc2 {[%clk 0:01:03]}  Ra5 {[%clk 0:00:16]} 39. Kd3 {[%clk 0:00:59]}  Be7 {[%clk 0:00:16]} 40. Kxc3 {[%clk 0:00:59]}  b4+ {[%clk 0:00:17]} 41. Kc4 {[%clk 0:00:57]}  Ra7 {[%clk 0:00:16]} 42. Kd3 {[%clk 0:00:57]}  Rc7 {[%clk 0:00:17]} 43. Rb3 {[%clk 0:00:56]}  Bd6 {[%clk 0:00:18]} 44. Bd1 {[%clk 0:00:47]}  Rc1 {[%clk 0:00:19]} 45. Ke2 {[%clk 0:00:47]}  Kf6 {[%clk 0:00:16]} 46. Rf3+ {[%clk 0:00:46]}  Ke7 {[%clk 0:00:17]} 47. Rd3 {[%clk 0:00:43]}  Rc8 {[%clk 0:00:16]} 48. Bb3 {[%clk 0:00:43]}  Rh8 {[%clk 0:00:15]} 49. d5 {[%clk 0:00:41]}  e5 {[%clk 0:00:16]} 50. Rf3 {[%clk 0:00:39]}  h5 {[%clk 0:00:16]} 51. gxh5 {[%clk 0:00:39]}  Rxh5 {[%clk 0:00:16]} 52. Bc2 {[%clk 0:00:39]}  Rh4 {[%clk 0:00:14]} 53. Bf5 {[%clk 0:00:34]}  Rc4 {[%clk 0:00:13]} 54. Kd2 {[%clk 0:00:33]}  e4 {[%clk 0:00:08]} 55. Rb3 {[%clk 0:00:30]}  Bf4+ {[%clk 0:00:09]} 56. Ke2 {[%clk 0:00:29]}  Kd6 {[%clk 0:00:09]} 57. f3 {[%clk 0:00:22]}  Rc2+ {[%clk 0:00:08]} 58. Kd1 {[%clk 0:00:20]}  Rd2+ {[%clk 0:00:06]} 59. Ke1 {[%clk 0:00:20]}  e3 {[%clk 0:00:06]} 60. Kf1 {[%clk 0:00:12]}  e2+ {[%clk 0:00:04]} 61. Ke1 {[%clk 0:00:12]}  Bg3+ {[%clk 0:00:05]} 62. Kxd2 {[%clk 0:00:12]}  e1=Q+ {[%clk 0:00:06]} 63. Kc2 {[%clk 0:00:13]}  Be5 {[%clk 0:00:04]} 64. Be4 {[%clk 0:00:07]}  Qf2+ {[%clk 0:00:05]} 65. Kb1 {[%clk 0:00:08]}  Bc3 {[%clk 0:00:06]} 66. Bd3 {[%clk 0:00:07]}  Qe1+ {[%clk 0:00:06]} 67. Kc2 {[%clk 0:00:07]}  Qd2+ {[%clk 0:00:07]} 68. Kb1 {[%clk 0:00:07]}  Qxd3+ {[%clk 0:00:07]} 69. Ka2 {[%clk 0:00:07]}  Qc2+ {[%clk 0:00:08]} 70. Rb2 {[%clk 0:00:08]}  Qxb2# {[%clk 0:00:08]} 0-1


[Site "https://www.chess.com"]

[Event "Titled Tuesday Blitz July 18 Late 2023"]
[White "Matlakov, Maxim"]
[Black "Ezat, Mohamed"]
[WhiteFideId "4168003"]
[BlackFideId "10600906"]
[WhiteElo "2947"]
[BlackElo "2551"]
[Result "1-0"]
[Round "2"]
[TimeControl "180+2"]
[Date "2023.07.18"]
[WhiteClock "0:00:38"]
[BlackClock "0:00:18"]
[Board "23"]

1. d4 {[%clk 0:03:00]}  Nf6 {[%clk 0:02:59]} 2. Nf3 {[%clk 0:03:01]}  g6 {[%clk 0:02:59]} 3. g3 {[%clk 0:02:59]}  Bg7 {[%clk 0:02:59]} 4. Bg2 {[%clk 0:02:59]}  O-O {[%clk 0:03:00]} 5. O-O {[%clk 0:03:00]}  d6 {[%clk 0:03:00]} 6. Nc3 {[%clk 0:02:59]}  Nc6 {[%clk 0:02:59]} 7. d5 {[%clk 0:02:59]}  Nb4 {[%clk 0:02:56]} 8. e4 {[%clk 0:02:57]}  c5 {[%clk 0:02:53]} 9. h3 {[%clk 0:02:54]}  Na6 {[%clk 0:02:50]} 10. Re1 {[%clk 0:02:54]}  Nd7 {[%clk 0:02:47]} 11. Bf4 {[%clk 0:02:51]}  Nc7 {[%clk 0:02:46]} 12. a4 {[%clk 0:02:50]}  b6 {[%clk 0:02:45]} 13. e5 {[%clk 0:02:42]}  dxe5 {[%clk 0:02:44]} 14. Nxe5 {[%clk 0:02:43]}  Nxe5 {[%clk 0:02:43]} 15. Bxe5 {[%clk 0:02:44]}  Bxe5 {[%clk 0:02:42]} 16. Rxe5 {[%clk 0:02:45]}  Rb8 {[%clk 0:02:41]} 17. Qe1 {[%clk 0:02:31]}  e6 {[%clk 0:02:18]} 18. Rd1 {[%clk 0:02:30]}  exd5 {[%clk 0:02:18]} 19. Nxd5 {[%clk 0:02:30]}  Nxd5 {[%clk 0:02:17]} 20. Bxd5 {[%clk 0:02:23]}  Qf6 {[%clk 0:02:16]} 21. h4 {[%clk 0:02:13]}  Bg4 {[%clk 0:02:14]} 22. Rd3 {[%clk 0:02:09]}  h5 {[%clk 0:02:04]} 23. c4 {[%clk 0:02:09]}  a6 {[%clk 0:01:56]} 24. Rde3 {[%clk 0:02:08]}  b5 {[%clk 0:01:55]} 25. cxb5 {[%clk 0:02:04]}  axb5 {[%clk 0:01:55]} 26. a5 {[%clk 0:02:04]}  b4 {[%clk 0:01:44]} 27. Re7 {[%clk 0:02:01]}  Kh8 {[%clk 0:01:31]} 28. Qc1 {[%clk 0:01:27]}  Rbd8 {[%clk 0:01:06]} 29. R7e5 {[%clk 0:01:09]}  Kg7 {[%clk 0:01:00]} 30. Qxc5 {[%clk 0:01:02]}  Rc8 {[%clk 0:00:53]} 31. Qxb4 {[%clk 0:01:01]}  Rc2 {[%clk 0:00:49]} 32. Qf4 {[%clk 0:00:59]}  Qxf4 {[%clk 0:00:47]} 33. gxf4 {[%clk 0:01:00]}  Rxb2 {[%clk 0:00:48]} 34. Ra3 {[%clk 0:00:57]}  Rc8 {[%clk 0:00:34]} 35. a6 {[%clk 0:00:45]}  Be6 {[%clk 0:00:26]} 36. Bxe6 {[%clk 0:00:42]}  fxe6 {[%clk 0:00:26]} 37. a7 {[%clk 0:00:42]}  Ra8 {[%clk 0:00:24]} 38. Rxe6 {[%clk 0:00:41]}  Rb7 {[%clk 0:00:24]} 39. Rea6 {[%clk 0:00:40]}  Rf7 {[%clk 0:00:23]} 40. R3a4 {[%clk 0:00:40]}  Rf6 {[%clk 0:00:23]} 41. Rxf6 {[%clk 0:00:39]}  Kxf6 {[%clk 0:00:22]} 42. Kg2 {[%clk 0:00:40]}  Kf5 {[%clk 0:00:22]} 43. Kf3 {[%clk 0:00:40]}  Ke6 {[%clk 0:00:22]} 44. Ke4 {[%clk 0:00:39]}  Kf6 {[%clk 0:00:23]} 45. Ra6+ {[%clk 0:00:39]}  Kg7 {[%clk 0:00:23]} 46. Kd5 {[%clk 0:00:39]}  Kf7 {[%clk 0:00:18]} 47. Kc6 {[%clk 0:00:38]} 1-0


[Site "https://www.chess.com"]

[Event "Titled Tuesday Blitz July 18 Late 2023"]
[White "Antipov, Mikhail Al."]
[Black "Gascon Del Nogal, Jose Rafael"]
[WhiteFideId "4107012"]
[BlackFideId "3902463"]
[WhiteElo "2926"]
[BlackElo "2548"]
[Result "0-1"]
[Round "2"]
[TimeControl "180+2"]
[Date "2023.07.18"]
[WhiteClock "0:00:04"]
[BlackClock "0:00:28"]
[Board "25"]

1. e4 {[%clk 0:02:45]}  c5 {[%clk 0:02:59]} 2. Nf3 {[%clk 0:02:44]}  d6 {[%clk 0:02:59]} 3. d4 {[%clk 0:02:43]}  cxd4 {[%clk 0:03:00]} 4. Nxd4 {[%clk 0:02:44]}  Nf6 {[%clk 0:03:00]} 5. Nc3 {[%clk 0:02:44]}  Nc6 {[%clk 0:03:01]} 6. Bg5 {[%clk 0:02:42]}  e6 {[%clk 0:03:01]} 7. Qd3 {[%clk 0:02:40]}  Bd7 {[%clk 0:03:01]} 8. Ndb5 {[%clk 0:02:36]}  Nb4 {[%clk 0:02:53]} 9. Qd1 {[%clk 0:02:33]}  a6 {[%clk 0:02:50]} 10. Bxf6 {[%clk 0:02:31]}  gxf6 {[%clk 0:02:49]} 11. a3 {[%clk 0:02:29]}  axb5 {[%clk 0:01:47]} 12. axb4 {[%clk 0:02:28]}  Rxa1 {[%clk 0:01:47]} 13. Qxa1 {[%clk 0:02:29]}  d5 {[%clk 0:01:48]} 14. exd5 {[%clk 0:02:20]}  Bxb4 {[%clk 0:01:47]} 15. dxe6 {[%clk 0:02:21]}  fxe6 {[%clk 0:01:42]} 16. Bd3 {[%clk 0:02:20]}  O-O {[%clk 0:01:20]} 17. O-O {[%clk 0:02:19]}  Kh8 {[%clk 0:01:21]} 18. Nxb5 {[%clk 0:01:46]}  Bc6 {[%clk 0:01:16]} 19. Rd1 {[%clk 0:01:36]}  Rg8 {[%clk 0:00:46]} 20. Be4 {[%clk 0:00:56]}  Rxg2+ {[%clk 0:00:40]} 21. Kh1 {[%clk 0:00:20]}  Bxe4 {[%clk 0:00:36]} 22. Nc3 {[%clk 0:00:10]}  Bxc3 {[%clk 0:00:28]} 23. Rxd8+ {[%clk 0:00:03]}  Rg8+ {[%clk 0:00:28]} 24. f3 {[%clk 0:00:04]}  Bxf3# {[%clk 0:00:28]} 0-1


[Site "https://www.chess.com"]

[Event "Titled Tuesday Blitz July 18 Late 2023"]
[White "Mekhane, Adam"]
[Black "Anton Guijarro, David"]
[WhiteFideId "36050601"]
[BlackFideId "2285525"]
[WhiteElo "2548"]
[BlackElo "2926"]
[Result "0-1"]
[Round "2"]
[TimeControl "180+2"]
[Date "2023.07.18"]
[WhiteClock "0:00:00"]
[BlackClock "0:00:10"]
[Board "26"]

1. e4 {[%clk 0:03:00]}  c6 {[%clk 0:03:00]} 2. d4 {[%clk 0:03:00]}  a6 {[%clk 0:03:00]} 3. c4 {[%clk 0:02:59]}  d5 {[%clk 0:03:01]} 4. cxd5 {[%clk 0:02:58]}  cxd5 {[%clk 0:03:02]} 5. exd5 {[%clk 0:02:54]}  Nf6 {[%clk 0:03:01]} 6. Nc3 {[%clk 0:02:54]}  Nxd5 {[%clk 0:03:00]} 7. Nf3 {[%clk 0:02:53]}  Nc6 {[%clk 0:02:58]} 8. Bc4 {[%clk 0:02:53]}  Be6 {[%clk 0:02:59]} 9. Bxd5 {[%clk 0:02:47]}  Bxd5 {[%clk 0:02:59]} 10. O-O {[%clk 0:02:47]}  e6 {[%clk 0:02:58]} 11. Bg5 {[%clk 0:02:44]}  Be7 {[%clk 0:02:42]} 12. Bxe7 {[%clk 0:02:39]}  Nxe7 {[%clk 0:02:43]} 13. Ne5 {[%clk 0:02:35]}  O-O {[%clk 0:02:42]} 14. Rc1 {[%clk 0:02:32]}  Rc8 {[%clk 0:02:40]} 15. Re1 {[%clk 0:02:31]}  h6 {[%clk 0:02:34]} 16. h3 {[%clk 0:02:27]}  Nf5 {[%clk 0:02:31]} 17. Qd3 {[%clk 0:02:23]}  Nh4 {[%clk 0:02:18]} 18. f3 {[%clk 0:02:00]}  Qg5 {[%clk 0:01:50]} 19. Ng4 {[%clk 0:00:43]}  Rcd8 {[%clk 0:01:16]} 20. Qe3 {[%clk 0:00:36]}  Qe7 {[%clk 0:01:13]} 21. Rcd1 {[%clk 0:00:31]}  Nf5 {[%clk 0:01:02]} 22. Qf2 {[%clk 0:00:27]}  Qb4 {[%clk 0:00:59]} 23. a3 {[%clk 0:00:18]}  Qb6 {[%clk 0:00:57]} 24. Ne5 {[%clk 0:00:18]}  Bb3 {[%clk 0:00:51]} 25. Rd2 {[%clk 0:00:15]}  Bd5 {[%clk 0:00:21]} 26. Red1 {[%clk 0:00:12]}  Ne7 {[%clk 0:00:20]} 27. Nxd5 {[%clk 0:00:10]}  Rxd5 {[%clk 0:00:20]} 28. Kh2 {[%clk 0:00:07]}  Rfd8 {[%clk 0:00:19]} 29. Kg1 {[%clk 0:00:06]}  Nf5 {[%clk 0:00:18]} 30. Nc4 {[%clk 0:00:06]}  Qa7 {[%clk 0:00:15]} 31. Ne3 {[%clk 0:00:06]}  Nxe3 {[%clk 0:00:14]} 32. Qxe3 {[%clk 0:00:06]}  e5 {[%clk 0:00:14]} 33. Qe4 {[%clk 0:00:05]}  exd4 {[%clk 0:00:14]} 34. Rd3 {[%clk 0:00:04]}  Qb6 {[%clk 0:00:14]} 35. Kh2 {[%clk 0:00:04]}  Qxb2 {[%clk 0:00:11]} 36. R3d2 {[%clk 0:00:03]}  Qb6 {[%clk 0:00:11]} 37. Rb1 {[%clk 0:00:03]}  Qd6+ {[%clk 0:00:11]} 38. g3 {[%clk 0:00:02]}  b5 {[%clk 0:00:11]} 39. h4 {[%clk 0:00:02]}  Qxa3 {[%clk 0:00:11]} 40. Rc2 {[%clk 0:00:00]}  Qe3 {[%clk 0:00:10]} 0-1


[Site "https://www.chess.com"]